[Event "OeISM B U10"]
[Site "AUT_boys_U10"]
[Date "2020.12.13"]
[Round "5"]
[White "philip2010"]
[Black "Lukas-2010"]
[Result "1/2-1/2"]
[WhiteElo "1891"]
[BlackElo "1961"]
[Annotator "NA"]
[PlyCount "277"]
[EventDate "2020.12.13"]
[EventType "blitz"]
[TimeControl "600+3"]

1. d4 {[%emt 0:00:05]} Nf6 {[%emt 0:00:04]} 2. Bf4 {[%emt 0:00:05]} e6 {[%emt 0:00:17]} 3. e3 {[%emt 0:00:06]} c5 {[%emt 0:00:05]} 4. c3 {[%emt 0:00:03]} cxd4 {[%emt 0:00:12]} 5. exd4 {[%emt 0:00:03]} b6 {[%emt 0:00:06]} 6. Nf3 {[%emt 0:00:08]} Bb7 {[%emt 0:00:02]} 7. Be2 {[%emt 0:00:02]} Be7 {[%emt 0:00:07]} 8. O-O {[%emt 0:00:02]} O-O {[%emt 0:00:01]} 9. Nbd2 {[%emt 0:00:05]} d6 {[%emt 0:00:05]} 10. h3 {[%emt 0:00:05]} Nbd7 {[%emt 0:00:02]} 11. Re1 {[%emt 0:00:21]} Re8 {[%emt 0:00:06]} 12. Bf1 {[%emt 0:00:16]} Bf8 {[%emt 0:00:05]} 13. Nc4 {[%emt 0:00:27]} Qc7 {[%emt 0:00:12]} 14. a4 {[%emt 0:00:44]} Rad8 {[%emt 0:00:37]} 15. Qb3 {[%emt 0:01:56]} Bxf3 {[%emt 0:01:12]} 16. gxf3 {[%emt 0:00:00]} e5 {[%emt 0:00:08]} 17. dxe5 {[%emt 0:00:27]} Nxe5 {[%emt 0:00:19]} 18. Nxe5 {[%emt 0:00:08]} dxe5 {[%emt 0:00:00]} 19. Bg3 {[%emt 0:00:08]} Bc5 {[%emt 0:00:40]} 20. Qc2 {[%emt 0:00:29]} Nh5 {[%emt 0:00:36]} 21. Kg2 {[%emt 0:00:34]} Nxg3 {[%emt 0:01:11]} 22. fxg3 {[%emt 0:00:10]} Rd6 {[%emt 0:00:11]} 23. Rad1 {[%emt 0:00:10]} Rg6 {[%emt 0:00:21]} 24. g4 {[%emt 0:00:18]} Rd6 {[%emt 0:01:28]} 25. Rxd6 {[%emt 0:00:15]} Bxd6 {[%emt 0:00:14]} 26. Bd3 {[%emt 0:00:14]} h6 {[%emt 0:00:12]} 27. Be4 {[%emt 0:00:16]} Rd8 {[%emt 0:00:12]} 28. Rd1 {[%emt 0:00:03]} Be7 {[%emt 0:00:15]} 29. Rd3 {[%emt 0:00:15]} Rxd3 {[%emt 0:00:13]} 30. Qxd3 {[%emt 0:00:06]} Qd6 {[%emt 0:00:05]} 31. Qxd6 {[%emt 0:00:18]} Bxd6 {[%emt 0:00:00]} 32. Kf1 {[%emt 0:00:05]} Kf8 {[%emt 0:00:08]} 33. Ke2 {[%emt 0:00:03]} Ke7 {[%emt 0:00:01]} 34. Kd3 {[%emt 0:00:03]} g6 {[%emt 0:00:17]} 35. Kc4 {[%emt 0:00:17]} a6 {[%emt 0:00:40]} 36. Bb7 {[%emt 0:00:32]} a5 {[%emt 0:00:03]} 37. Kb5 {[%emt 0:00:11]} Bc5 {[%emt 0:00:24]} 38. b4 {[%emt 0:00:19]} axb4 {[%emt 0:00:00]} 39. cxb4 {[%emt 0:00:01]} Bd4 {[%emt 0:00:32]} 40. Kc4 {[%emt 0:00:19]} Kd6 {[%emt 0:00:05]} 41. a5 {[%emt 0:00:17]} bxa5 {[%emt 0:00:01]} 42. bxa5 {[%emt 0:00:00]} f5 {[%emt 0:00:04]} 43. Kd3 {[%emt 0:00:05]} Ba7 {[%emt 0:00:04]} 44. a6 {[%emt 0:00:06]} h5 {[%emt 0:00:06]} 45. gxh5 {[%emt 0:00:11]} gxh5 {[%emt 0:00:01]} 46. Bc8 {[%emt 0:00:14]} e4+ {[%emt 0:00:02]} 47. fxe4 {[%emt 0:00:03]} fxe4+ {[%emt 0:00:00]} 48. Kxe4 {[%emt 0:00:01]} h4 {[%emt 0:00:01]} 49. Kd3 {[%emt 0:00:23]} Ke5 {[%emt 0:00:03]} 50. Kc4 {[%emt 0:00:08]} Kf6 {[%emt 0:00:01]} 51. Kb5 {[%emt 0:00:06]} Kg7 {[%emt 0:00:01]} 52. Kc6 {[%emt 0:00:04]} Kh8 {[%emt 0:00:01]} 53. Kb7 {[%emt 0:00:07]} Bd4 {[%emt 0:00:02]} 54. Bg4 {[%emt 0:00:02]} Kg7 {[%emt 0:00:02]} 55. Kc6 {[%emt 0:00:10]} Kh8 {[%emt 0:00:01]} 56. Kd5 {[%emt 0:00:00]} Ba7 {[%emt 0:00:01]} 57. Ke4 {[%emt 0:00:00]} Kg7 {[%emt 0:00:03]} 58. Kf5 {[%emt 0:00:00]} Kh8 {[%emt 0:00:03]} 59. Kg5 {[%emt 0:00:02]} Bf2 {[%emt 0:00:02]} 60. Kh5 {[%emt 0:00:06]} Kg7 {[%emt 0:00:02]} 61. Bc8 {[%emt 0:00:02]} Kh8 {[%emt 0:00:03]} 62. Bb7 {[%emt 0:00:00]} Kg7 {[%emt 0:00:02]} 63. Kg4 {[%emt 0:00:01]} Kh8 {[%emt 0:00:03]} 64. Kg5 {[%emt 0:00:00]} Kg7 {[%emt 0:00:01]} 65. Kh5 {[%emt 0:00:00]} Kh8 {[%emt 0:00:01]} 66. Bf3 {[%emt 0:00:02]} Kg7 {[%emt 0:00:02]} 67. Bg4 {[%emt 0:00:01]} Kh8 {[%emt 0:00:02]} 68. Bf3 {[%emt 0:00:00]} Kg7 {[%emt 0:00:01]} 69. Bg4 {[%emt 0:00:00]} Kh8 {[%emt 0:00:01]} 70. Bc8 {[%emt 0:00:00]} Kg7 {[%emt 0:00:02]} 71. Bb7 {[%emt 0:00:00]} Kh8 {[%emt 0:00:01]} 72. Kg4 {[%emt 0:00:02]} Kg7 {[%emt 0:00:01]} 73. Kf3 {[%emt 0:00:04]} Ba7 {[%emt 0:00:01]} 74. Ke4 {[%emt 0:00:02]} Kh8 {[%emt 0:00:02]} 75. Kd5 {[%emt 0:00:00]} Kg7 {[%emt 0:00:01]} 76. Kc6 {[%emt 0:00:00]} Kh8 {[%emt 0:00:01]} 77. Kd7 {[%emt 0:00:03]} Kg7 {[%emt 0:00:01]} 78. Kc8 {[%emt 0:00:01]} Kh8 {[%emt 0:00:01]} 79. Bg2 {[%emt 0:00:00]} Kg7 {[%emt 0:00:01]} 80. Kb7 {[%emt 0:00:01]} Bd4 {[%emt 0:00:01]} 81. Kc6 {[%emt 0:00:01]} Kh8 {[%emt 0:00:02]} 82. Kb5 {[%emt 0:00:00]} Kg7 {[%emt 0:00:01]} 83. Kc4 {[%emt 0:00:00]} Ba7 {[%emt 0:00:02]} 84. Kd5 {[%emt 0:00:00]} Kh8 {[%emt 0:00:02]} 85. Kd6 {[%emt 0:00:00]} Kg7 {[%emt 0:00:01]} 86. Kc7 {[%emt 0:00:00]} Kh8 {[%emt 0:00:01]} 87. Kb7 {[%emt 0:00:00]} Bf2 {[%emt 0:00:01]} 88. Kb8 {[%emt 0:00:05]} Kg7 {[%emt 0:00:01]} 89. Kb7 {[%emt 0:00:00]} Kh8 {[%emt 0:00:01]} 90. Kc8 {[%emt 0:00:03]} Kg7 {[%emt 0:00:01]} 91. Kc7 {[%emt 0:00:01]} Kh8 {[%emt 0:00:01]} 92. Kc6 {[%emt 0:00:00]} Kg7 {[%emt 0:00:01]} 93. Bh1 {[%emt 0:00:02]} Kh8 {[%emt 0:00:01]} 94. Kb5 {[%emt 0:00:01]} Kg7 {[%emt 0:00:01]} 95. Kc6 {[%emt 0:00:03]} Kh8 {[%emt 0:00:01]} 96. Kb7 {[%emt 0:00:00]} Kg7 {[%emt 0:00:01]} 97. a7 {[%emt 0:00:01]} Bxa7 {[%emt 0:00:02]} 98. Kxa7 {[%emt 0:00:01]} Kh8 {[%emt 0:00:01]} 99. Kb6 {[%emt 0:00:01]} Kg7 {[%emt 0:00:00]} 100. Kc5 {[%emt 0:00:00]} Kh8 {[%emt 0:00:01]} 101. Kd4 {[%emt 0:00:01]} Kg7 {[%emt 0:00:00]} 102. Ke4 {[%emt 0:00:00]} Kh8 {[%emt 0:00:01]} 103. Kf4 {[%emt 0:00:00]} Kg7 {[%emt 0:00:01]} 104. Kg4 {[%emt 0:00:00]} Kh8 {[%emt 0:00:01]} 105. Kxh4 {[%emt 0:00:00]} Kg7 {[%emt 0:00:01]} 106. Kh5 {[%emt 0:00:00]} Kh8 {[%emt 0:00:01]} 107. h4 {[%emt 0:00:00]} Kg8 {[%emt 0:00:01]} 108. Bg2 {[%emt 0:00:00]} Kh8 {[%emt 0:00:01]} 109. Kg5 {[%emt 0:00:00]} Kg7 {[%emt 0:00:01]} 110. h5 {[%emt 0:00:00]} Kh8 {[%emt 0:00:01]} 111. Bh3 {[%emt 0:00:00]} Kg7 {[%emt 0:00:01]} 112. Bf5 {[%emt 0:00:00]} Kh8 {[%emt 0:00:01]} 113. Kf6 {[%emt 0:00:01]} Kg8 {[%emt 0:00:01]} 114. Kg5 {[%emt 0:00:00]} Kh8 {[%emt 0:00:01]} 115. h6 {[%emt 0:00:00]} Kg8 {[%emt 0:00:01]} 116. Kh5 {[%emt 0:00:00]} Kh8 {[%emt 0:00:01]} 117. Bg4 {[%emt 0:00:00]} Kg8 {[%emt 0:00:01]} 118. Bf3 {[%emt 0:00:00]} Kh8 {[%emt 0:00:00]} 119. Be2 {[%emt 0:00:00]} Kg8 {[%emt 0:00:00]} 120. Bd1 {[%emt 0:00:00]} Kh8 {[%emt 0:00:00]} 121. Bc2 {[%emt 0:00:00]} Kg8 {[%emt 0:00:01]} 122. Bb1 {[%emt 0:00:00]} Kh8 {[%emt 0:00:01]} 123. Ba2 {[%emt 0:00:00]} Kh7 {[%emt 0:00:02]} 124. Bb1+ {[%emt 0:00:00]} Kh8 {[%emt 0:00:01]} 125. Kg6 {[%emt 0:00:00]} Kg8 {[%emt 0:00:01]} 126. Bc2 {[%emt 0:00:00]} Kh8 {[%emt 0:00:01]} 127. Bd3 {[%emt 0:00:00]} Kg8 {[%emt 0:00:01]} 128. Be4 {[%emt 0:00:00]} Kh8 {[%emt 0:00:01]} 129. Bf5 {[%emt 0:00:00]} Kg8 {[%emt 0:00:01]} 130. Be4 {[%emt 0:00:00]} Kh8 {[%emt 0:00:01]} 131. Bd3 {[%emt 0:00:00]} Kg8 {[%emt 0:00:00]} 132. Bc2 {[%emt 0:00:00]} Kh8 {[%emt 0:00:00]} 133. Bb1 {[%emt 0:00:00]} Kg8 {[%emt 0:00:01]} 134. Bf5 {[%emt 0:00:00]} Kh8 {[%emt 0:00:01]} 135. Bh3 {[%emt 0:00:00]} Kg8 {[%emt 0:00:01]} 136. Bg2 {[%emt 0:00:00]} Kh8 {[%emt 0:00:01]} 137. Bf1 {[%emt 0:00:00]} Kg8 {[%emt 0:00:01]} 138. Be2 {[%emt 0:00:00]} Kh8 {[%emt 0:00:01]} 139. Bd3 {[%emt 0:00:00] Threefold Rep Threefold Rep} 1/2-1/2